fUSD/lending_fUSD_20250308
["ID","MTS","AMOUNT","RATE_DAILY","PERIOD"]
[355676046,1741452648435,-500.0,8.767e-05,2]
[355676047,1741452648444,-13981.56,8.767e-05,2]
[355676048,1741452648454,-969.86,8.767e-05,2]
[355676049,1741452648463,-500.0,8.767e-05,2]
[355676050,1741452648472,-993.45,8.767e-05,2]
[355676051,1741452648481,-500.0,8.767e-05,2]
[355676052,1741452648491,-1510.52,8.767e-05,2]
[355676053,1741452648501,-500.0,8.767e-05,2]
[355676054,1741452648511,-3536.56,8.767e-05,2]
[355676055,1741452648520,-500.0,8.767e-05,2]
[355676056,1741452648530,-500.0,8.767e-05,2]
[355676057,1741452648540,-500.0,8.767e-05,2]
[355676058,1741452648550,-790.98,8.767e-05,2]
[355676059,1741452648560,-6696.4,8.767e-05,2]
[355676060,1741452648569,-500.0,8.767e-05,2]
[355676061,1741452648579,-500.0,8.767e-05,2]
[355676062,1741452648589,-500.0,8.767e-05,2]
[355676063,1741452648598,-1710.7,8.767e-05,2]
[355676064,1741452648607,-1445.03,8.767e-05,2]
[355676065,1741452648617,-267.64156925,8.781e-05,2]
[355676066,1741452648627,-267.64156925,8.875e-05,2]
[355676067,1741452648637,-9500.0,8.9e-05,3]
[355676068,1741452648646,-1300.0,8.9e-05,3]
[355676069,1741452648656,-550.0,8.931e-05,2]
[355676070,1741452648665,-150.0,8.931e-05,2]
[355676071,1741452648675,-150.0,8.931e-05,2]
[355676072,1741452648684,-285.0,8.959e-05,2]
[355676073,1741452648693,-267.64156925,8.969e-05,2]
[355676074,1741452648703,-14200.0,9e-05,3]
[355676075,1741452648712,-1900.0,9e-05,3]
[355676076,1741452648722,-250.0,9.019e-05,2]
[355676077,1741452648731,-2032.0,9.024e-05,2]
[355676078,1741452648740,-1278.0,9.024e-05,2]
[355676079,1741452648750,-1459.0,9.024e-05,2]
[355676080,1741452648759,-640.0,9.024e-05,2]
[355676081,1741452648768,-571.0,9.024e-05,2]
[355676082,1741452648778,-786.0,9.024e-05,2]
[355676083,1741452648787,-150.0,9.024e-05,2]
[355676084,1741452648798,-1802.493,9.024e-05,2]
[355676085,1741452648807,-150.0,9.024e-05,2]
[355676086,1741452648816,-233.0,9.024e-05,2]
[355676087,1741452648825,-150.934,9.024e-05,2]
[355676088,1741452648833,-420.0,9.039e-05,2]
[355676089,1741452648842,-278.575238,9.041e-05,2]
[355676090,1741452648851,-414.87639,9.041e-05,2]
[355676091,1741452648861,-500.0,9.041e-05,2]
[355676092,1741452648870,-500.0,9.041e-05,2]
[355676093,1741452648879,-500.0,9.041e-05,2]
[355676094,1741452648888,-500.0,9.041e-05,2]
[355676095,1741452648898,-500.0,9.041e-05,2]
[355676096,1741452648907,-500.0,9.041e-05,2]
[355676097,1741452648916,-500.0,9.041e-05,2]
[355676098,1741452648926,-500.0,9.041e-05,2]
[355676099,1741452648936,-500.0,9.041e-05,2]
[355676100,1741452648945,-500.0,9.041e-05,2]
[355676101,1741452648956,-500.0,9.041e-05,2]
[355676102,1741452648966,-500.0,9.041e-05,2]
[355676103,1741452648975,-500.0,9.041e-05,2]
[355676104,1741452648985,-500.0,9.041e-05,2]
[355676105,1741452648994,-485.1123718,9.041e-05,2]
[355676106,1741452649004,-500.0,9.041e-05,2]
[355676107,1741452649014,-500.0,9.041e-05,2]
[355676108,1741452649024,-500.0,9.041e-05,2]
[355676109,1741452649034,-500.0,9.041e-05,2]
[355676110,1741452649043,-500.0,9.041e-05,2]
[355676111,1741452649053,-500.0,9.041e-05,2]
[355676112,1741452649063,-544.32,9.041e-05,2]
[355676113,1741452649076,-500.0,9.041e-05,2]
[355676114,1741452649085,-500.0,9.041e-05,2]
[355676115,1741452649096,-500.0,9.041e-05,2]
[355676116,1741452649107,-500.0,9.041e-05,2]
[355676117,1741452649116,-500.0,9.041e-05,2]
[355676118,1741452649126,-500.0,9.041e-05,2]
[355676119,1741452649135,-500.0,9.041e-05,2]
[355676120,1741452649145,-500.0,9.041e-05,2]
[355676121,1741452649155,-500.0,9.041e-05,2]
[355676122,1741452649165,-426.64433562,9.041e-05,2]
[355676123,1741452649176,-500.0,9.041e-05,2]
[355676124,1741452649187,-500.0,9.041e-05,2]
[355676125,1741452649198,-500.0,9.041e-05,2]
[355676126,1741452649208,-500.0,9.041e-05,2]
[355676127,1741452649220,-500.0,9.041e-05,2]
[355676128,1741452649229,-500.0,9.041e-05,2]
[355676129,1741452649239,-500.0,9.041e-05,2]
[355676130,1741452649254,-500.0,9.041e-05,2]
[355676131,1741452649272,-500.0,9.041e-05,2]
[355676132,1741452649282,-500.0,9.041e-05,2]
[355676133,1741452649293,-500.0,9.041e-05,2]
[355676134,1741452649302,-500.0,9.041e-05,2]
[355676135,1741452649312,-500.0,9.041e-05,2]
[355676136,1741452649322,-500.0,9.041e-05,2]
[355676137,1741452649331,-500.0,9.041e-05,2]
[355676138,1741452649341,-500.0,9.041e-05,2]
[355676139,1741452649350,-437.23074628,9.041e-05,2]
[355676140,1741452649360,-500.0,9.041e-05,2]
[355676141,1741452649369,-500.0,9.041e-05,2]
[355676142,1741452649379,-572.01,9.041e-05,2]
[355676143,1741452649389,-500.0,9.041e-05,2]
[355676144,1741452649398,-500.0,9.041e-05,2]
[355676145,1741452649408,-653.42,9.041e-05,2]
[355676146,1741452649417,-500.0,9.041e-05,2]
[355676147,1741452649428,-500.0,9.041e-05,2]
[355676148,1741452649437,-500.0,9.041e-05,2]
[355676149,1741452649446,-525.98,9.041e-05,2]
[355676150,1741452649456,-579.96,9.041e-05,2]
[355676151,1741452649465,-500.0,9.041e-05,2]
[355676152,1741452649475,-525.57,9.041e-05,2]
[355676153,1741452649484,-500.0,9.041e-05,2]
[355676154,1741452649494,-709.73,9.041e-05,2]
[355676155,1741452649504,-500.0,9.041e-05,2]
[355676156,1741452649514,-500.0,9.041e-05,2]
[355676157,1741452649523,-500.0,9.041e-05,2]
[355676158,1741452649533,-591.01,9.041e-05,2]
[355676159,1741452649542,-500.0,9.041e-05,2]
[355676160,1741452649552,-743.6,9.041e-05,2]
[355676161,1741452649562,-500.0,9.041e-05,2]
[355676162,1741452649572,-500.0,9.041e-05,2]
[355676163,1741452649581,-500.0,9.041e-05,2]
[355676164,1741452649590,-500.0,9.041e-05,2]
[355676165,1741452649601,-609.03,9.041e-05,2]
[355676166,1741452649610,-612.62,9.041e-05,2]
[355676167,1741452649622,-500.0,9.041e-05,2]
[355676168,1741452649631,-500.0,9.041e-05,2]
[355676169,1741452649641,-500.0,9.041e-05,2]
[355676170,1741452649651,-500.0,9.041e-05,2]
[355676171,1741452649661,-500.0,9.041e-05,2]
[355676172,1741452649671,-609.32,9.041e-05,2]
[355676173,1741452649681,-851.29,9.041e-05,2]
[355676174,1741452649691,-1077.93,9.041e-05,2]
[355676175,1741452649701,-500.0,9.041e-05,2]
[355676176,1741452649711,-691.53,9.041e-05,2]
[355676177,1741452649720,-708.66,9.041e-05,2]
[355676178,1741452649730,-500.0,9.041e-05,2]
[355676179,1741452649740,-500.0,9.041e-05,2]
[355676180,1741452649749,-500.0,9.041e-05,2]
[355676181,1741452649759,-500.0,9.041e-05,2]
[355676182,1741452649769,-859.23,9.041e-05,2]
[355676183,1741452649779,-500.0,9.041e-05,2]
[355676184,1741452649789,-500.0,9.041e-05,2]
[355676185,1741452649799,-500.0,9.041e-05,2]
[355676186,1741452649809,-500.0,9.041e-05,2]
[355676187,1741452649824,-500.0,9.041e-05,2]
[355676188,1741452649833,-688.72,9.041e-05,2]
[355676189,1741452649843,-844.82,9.041e-05,2]
[355676190,1741452649853,-541.84,9.041e-05,2]
[355676191,1741452649864,-654.03,9.041e-05,2]
[355676192,1741452649874,-500.0,9.041e-05,2]
[355676193,1741452649883,-712.63,9.041e-05,2]
[355676194,1741452649893,-500.0,9.041e-05,2]
[355676195,1741452649902,-500.0,9.041e-05,2]
[355676196,1741452649912,-500.0,9.041e-05,2]
[355676197,1741452649923,-500.0,9.041e-05,2]
[355676198,1741452649932,-500.0,9.041e-05,2]
[355676199,1741452649942,-658.85,9.041e-05,2]
[355676200,1741452649952,-500.0,9.041e-05,2]
[355676201,1741452649962,-794.59,9.041e-05,2]
[355676202,1741452649971,-500.0,9.041e-05,2]
[355676203,1741452649982,-548.22,9.041e-05,2]
[355676204,1741452649992,-206.69907458,9.041e-05,2]
[355676205,1741452650001,-500.0,9.041e-05,2]
[355676206,1741452650011,-500.0,9.041e-05,2]
[355676207,1741452650020,-500.0,9.041e-05,2]
[355676208,1741452650030,-612.25,9.041e-05,2]
[355676209,1741452650040,-857.02,9.041e-05,2]
[355676210,1741452650049,-500.0,9.041e-05,2]
[355676211,1741452650059,-675.97,9.041e-05,2]
[355676212,1741452650074,-623.25,9.041e-05,2]
[355676213,1741452650083,-982.52,9.041e-05,2]
[355676214,1741452650093,-500.0,9.041e-05,2]
[355676215,1741452650102,-500.0,9.041e-05,2]
[355676216,1741452650113,-605.91,9.041e-05,2]
[355676217,1741452650122,-500.0,9.041e-05,2]
[355676218,1741452650132,-500.0,9.041e-05,2]
[355676219,1741452650143,-1592.66,9.041e-05,2]
[355676220,1741452650152,-710.79,9.041e-05,2]
[355676221,1741452650162,-500.0,9.041e-05,2]
[355676222,1741452650172,-500.0,9.041e-05,2]
[355676223,1741452650183,-500.0,9.041e-05,2]
[355676224,1741452650193,-557.14,9.041e-05,2]
[355676225,1741452650203,-500.0,9.041e-05,2]
[355676226,1741452650214,-500.0,9.041e-05,2]
[355676227,1741452650224,-1347.38,9.041e-05,2]
[355676228,1741452650234,-1502.89,9.041e-05,2]
[355676229,1741452650243,-1996.33,9.041e-05,2]
[355676230,1741452650253,-500.0,9.041e-05,2]
[355676231,1741452650262,-1144.05,9.041e-05,2]
[355676232,1741452650272,-500.0,9.041e-05,2]
[355676233,1741452650281,-1137.9,9.041e-05,2]
[355676234,1741452650291,-1690.8,9.041e-05,2]
[355676235,1741452650300,-1243.82,9.041e-05,2]
[355676236,1741452650310,-1174.08,9.041e-05,2]
[355676237,1741452650321,-614.72,9.041e-05,2]
[355676238,1741452650331,-500.0,9.041e-05,2]
[355676239,1741452650341,-961.42,9.041e-05,2]
[355676240,1741452650351,-500.0,9.041e-05,2]
[355676241,1741452650360,-551.38,9.041e-05,2]
[355676242,1741452650370,-1143.51,9.041e-05,2]
[355676243,1741452650380,-2931.8,9.041e-05,2]
[355676244,1741452650389,-1961.87,9.041e-05,2]
[355676245,1741452650399,-308.11014027,9.041e-05,2]
[355676246,1741452650410,-2407.62,9.041e-05,2]
[355676247,1741452650423,-1344.43,9.041e-05,2]
[355676248,1741452650434,-532.8,9.041e-05,2]
[355676249,1741452650443,-500.0,9.041e-05,2]
[355676250,1741452650452,-500.0,9.041e-05,2]
[355676251,1741452650462,-500.0,9.041e-05,2]
[355676252,1741452650472,-556.64,9.041e-05,2]
[355676253,1741452650482,-987.54,9.041e-05,2]
[355676254,1741452650492,-4344.27,9.041e-05,2]
[355676255,1741452650502,-954.59,9.041e-05,2]
[355676256,1741452650512,-500.0,9.041e-05,2]
[355676257,1741452650521,-500.0,9.041e-05,2]
[355676258,1741452650530,-1000.0,9.041e-05,2]
[355676259,1741452650540,-500.0,9.041e-05,2]
[355676260,1741452650550,-1350.39,9.041e-05,2]
[355676261,1741452650559,-500.0,9.041e-05,2]
[355676262,1741452650568,-2515.6,9.041e-05,2]
[355676263,1741452650577,-500.0,9.041e-05,2]
[355676264,1741452650586,-3329.08,9.041e-05,2]
[355676265,1741452650596,-618.36,9.041e-05,2]
[355676266,1741452650605,-628.44,9.041e-05,2]
[355676267,1741452650615,-500.0,9.041e-05,2]
[355676268,1741452650624,-500.0,9.041e-05,2]
[355676269,1741452650634,-500.0,9.041e-05,2]
[355676270,1741452650644,-1060.46,9.041e-05,2]
[355676271,1741452650653,-500.0,9.041e-05,2]
[355676272,1741452650662,-819.91,9.041e-05,2]
[355676273,1741452650672,-2576.22,9.041e-05,2]
[355676274,1741452650681,-1583.51,9.041e-05,2]
[355676275,1741452650691,-979.53,9.041e-05,2]
[355676276,1741452650700,-2114.02,9.041e-05,2]
[355676277,1741452650709,-934.64,9.041e-05,2]
[355676278,1741452650719,-500.0,9.041e-05,2]
[355676279,1741452650728,-662.75,9.041e-05,2]
[355676280,1741452650737,-559.44,9.041e-05,2]
[355676281,1741452650747,-1432.89,9.041e-05,2]
[355676282,1741452650756,-1602.85,9.041e-05,2]
[355676283,1741452650766,-471.63569079,9.041e-05,2]
[355676284,1741452650776,-1858.7,9.041e-05,2]
[355676285,1741452650785,-529.15,9.041e-05,2]
[355676286,1741452650795,-865.71,9.041e-05,2]
[355676287,1741452650804,-4246.99,9.041e-05,2]
[355676288,1741452650814,-500.0,9.041e-05,2]
[355676289,1741452650823,-1130.2,9.041e-05,2]
[355676290,1741452650833,-500.0,9.041e-05,2]
[355676291,1741452650842,-4901.03,9.041e-05,2]
[355676292,1741452650852,-911.39,9.041e-05,2]
[355676293,1741452650861,-1278.79,9.041e-05,2]
[355676294,1741452650871,-500.0,9.041e-05,2]
[355676295,1741452650880,-826.26,9.041e-05,2]
[355676296,1741452650890,-2039.71,9.041e-05,2]
[355676297,1741452650899,-500.0,9.041e-05,2]
[355676298,1741452650908,-500.0,9.041e-05,2]
[355676299,1741452650923,-500.0,9.041e-05,2]
[355676300,1741452650932,-1258.53,9.041e-05,2]
[355676301,1741452650942,-906.02,9.041e-05,2]
[355676302,1741452650951,-1220.28,9.041e-05,2]
[355676303,1741452650960,-646.83,9.041e-05,2]
[355676304,1741452650970,-1111.92,9.041e-05,2]
[355676305,1741452650979,-8508.19,9.041e-05,2]
[355676306,1741452650988,-500.0,9.041e-05,2]
[355676307,1741452650998,-1538.13,9.041e-05,2]
[355676308,1741452651007,-1284.68,9.041e-05,2]
[355676309,1741452651016,-1549.41,9.041e-05,2]
[355676310,1741452651026,-2491.1,9.041e-05,2]
[355676311,1741452651035,-500.0,9.041e-05,2]
[355676312,1741452651045,-512.48,9.041e-05,2]
[355676313,1741452651058,-1790.81,9.041e-05,2]
[355676314,1741452651075,-500.0,9.041e-05,2]
[355676315,1741452651091,-2188.52,9.041e-05,2]
[355676316,1741452651101,-871.16,9.041e-05,2]
[355676317,1741452651111,-500.0,9.041e-05,2]
[355676318,1741452651120,-4434.79,9.041e-05,2]
[355676319,1741452651130,-625.66,9.041e-05,2]
[355676320,1741452651141,-1964.83,9.041e-05,2]
[355676321,1741452651151,-1952.32,9.041e-05,2]
[355676322,1741452651161,-716.59,9.041e-05,2]
[355676323,1741452651171,-500.0,9.041e-05,2]
[355676324,1741452651181,-2004.94,9.041e-05,2]
[355676325,1741452651190,-2082.21,9.041e-05,2]
[355676326,1741452651200,-1581.72,9.041e-05,2]
[355676327,1741452651209,-1195.58,9.041e-05,2]
[355676328,1741452651219,-500.0,9.041e-05,2]
[355676329,1741452651229,-4211.53,9.041e-05,2]
[355676330,1741452651238,-533.78,9.041e-05,2]
[355676331,1741452651248,-500.0,9.041e-05,2]
[355676332,1741452651258,-913.32,9.041e-05,2]
[355676333,1741452651267,-500.0,9.041e-05,2]
[355676334,1741452651276,-3878.83,9.041e-05,2]
[355676335,1741452651286,-2355.64,9.041e-05,2]
[355676336,1741452651295,-2212.11,9.041e-05,2]
[355676337,1741452651305,-500.0,9.041e-05,2]
[355676338,1741452651315,-2117.57,9.041e-05,2]
[355676339,1741452651324,-18782.74,9.041e-05,2]
[355676340,1741452651334,-500.0,9.041e-05,2]
[355676341,1741452651343,-1673.95,9.041e-05,2]
[355676342,1741452651353,-3792.76,9.041e-05,2]
[355676343,1741452651363,-500.0,9.041e-05,2]
[355676344,1741452651372,-500.0,9.041e-05,2]
[355676345,1741452651382,-510.78,9.041e-05,2]
[355676346,1741452651391,-594.34,9.041e-05,2]
[355676347,1741452651401,-1584.66,9.041e-05,2]
[355676348,1741452651410,-1000.88,9.041e-05,2]
[355676349,1741452651420,-1910.17,9.041e-05,2]
[355676350,1741452651430,-2164.63,9.041e-05,2]
[355676351,1741452651439,-895.76,9.041e-05,2]
[355676352,1741452651450,-4457.98,9.041e-05,2]
[355676353,1741452651460,-500.0,9.041e-05,2]
[355676354,1741452651470,-562.29,9.041e-05,2]
[355676355,1741452651479,-500.0,9.041e-05,2]
[355676356,1741452651489,-500.0,9.041e-05,2]
[355676357,1741452651499,-1388.1,9.041e-05,2]
[355676358,1741452651508,-500.0,9.041e-05,2]
[355676359,1741452651518,-507.13,9.041e-05,2]
[355676360,1741452651527,-1070.16,9.041e-05,2]
[355676361,1741452651537,-500.0,9.041e-05,2]
[355676362,1741452651546,-1021.66,9.041e-05,2]
[355676363,1741452651556,-1375.91,9.041e-05,2]
[355676364,1741452651566,-500.0,9.041e-05,2]
[355676365,1741452651575,-2592.63,9.041e-05,2]
[355676366,1741452651585,-500.0,9.041e-05,2]
[355676367,1741452651595,-3571.5,9.041e-05,2]
[355676368,1741452651604,-667.45,9.041e-05,2]
[355676369,1741452651615,-500.0,9.041e-05,2]
[355676370,1741452651625,-500.0,9.041e-05,2]
[355676371,1741452651634,-500.0,9.041e-05,2]
[355676372,1741452651643,-500.0,9.041e-05,2]
[355676373,1741452651653,-13981.56,9.041e-05,2]
[355676374,1741452651662,-969.86,9.041e-05,2]
[355676375,1741452651673,-500.0,9.041e-05,2]
[355676376,1741452651682,-993.45,9.041e-05,2]
[355676377,1741452651692,-500.0,9.041e-05,2]
[355676378,1741452651701,-1510.52,9.041e-05,2]
[355676379,1741452651711,-500.0,9.041e-05,2]
[355676380,1741452651721,-3536.56,9.041e-05,2]
[355676381,1741452651731,-500.0,9.041e-05,2]
[355676382,1741452651741,-500.0,9.041e-05,2]
[355676383,1741452651750,-500.0,9.041e-05,2]
[355676384,1741452651760,-790.98,9.041e-05,2]
[355676385,1741452651770,-6696.4,9.041e-05,2]
[355676386,1741452651964,-500.0,9.041e-05,2]
[355676387,1741452651973,-500.0,9.041e-05,2]
[355676388,1741452651983,-500.0,9.041e-05,2]
[355676389,1741452651992,-1710.7,9.041e-05,2]
[355676390,1741452652002,-1445.03,9.041e-05,2]
[355676391,1741452652011,-267.64156925,9.063e-05,2]
[355676392,1741452652021,-267.64156925,9.156e-05,2]
[355676393,1741452652030,-165.62,9.215e-05,2]
[355676394,1741452652040,-1000.0,9.247e-05,2]
[355676395,1741452652049,-267.64156925,9.25e-05,2]
[355676396,1741452652059,-278.575238,9.315e-05,2]
[355676397,1741452652072,-414.87639,9.315e-05,2]
[355676398,1741452652081,-500.0,9.315e-05,2]
[355676399,1741452652091,-500.0,9.315e-05,2]
[355676400,1741452652101,-500.0,9.315e-05,2]
[355676401,1741452652111,-500.0,9.315e-05,2]
[355676402,1741452652120,-500.0,9.315e-05,2]
[355676403,1741452652130,-500.0,9.315e-05,2]
[355676404,1741452652139,-500.0,9.315e-05,2]
[355676405,1741452652149,-500.0,9.315e-05,2]
[355676406,1741452652160,-500.0,9.315e-05,2]
[355676407,1741452652170,-500.0,9.315e-05,2]
[355676408,1741452652180,-500.0,9.315e-05,2]
[355676409,1741452652189,-500.0,9.315e-05,2]
[355676410,1741452652199,-500.0,9.315e-05,2]
[355676411,1741452652209,-500.0,9.315e-05,2]
[355676412,1741452652218,-500.0,9.315e-05,2]
[355676413,1741452652228,-500.0,9.315e-05,2]
[355676414,1741452652237,-519.48914118,9.315e-05,2]
[355676415,1741452652247,-500.0,9.315e-05,2]
[355676416,1741452652257,-500.0,9.315e-05,2]
[355676417,1741452652266,-500.0,9.315e-05,2]
[355676418,1741452652276,-544.32,9.315e-05,2]
[355676419,1741452652286,-500.0,9.315e-05,2]
[355676420,1741452652296,-500.0,9.315e-05,2]
[355676421,1741452652305,-500.0,9.315e-05,2]
[355676422,1741452652314,-500.0,9.315e-05,2]
[355676423,1741452652324,-500.0,9.315e-05,2]
[355676424,1741452652334,-500.0,9.315e-05,2]
[355676425,1741452652344,-500.0,9.315e-05,2]
[355676426,1741452652354,-500.0,9.315e-05,2]
[355676427,1741452652363,-500.0,9.315e-05,2]
[355676428,1741452652373,-500.0,9.315e-05,2]
[355676429,1741452652382,-500.0,9.315e-05,2]
[355676430,1741452652392,-500.0,9.315e-05,2]
[355676431,1741452652401,-500.0,9.315e-05,2]
[355676432,1741452652411,-500.0,9.315e-05,2]
[355676433,1741452652420,-500.0,9.315e-05,2]
[355676434,1741452652430,-500.0,9.315e-05,2]
[355676435,1741452652440,-500.0,9.315e-05,2]
[355676436,1741452652449,-500.0,9.315e-05,2]
[355676437,1741452652459,-500.0,9.315e-05,2]
[355676438,1741452652469,-500.0,9.315e-05,2]
[355676439,1741452652478,-500.0,9.315e-05,2]
[355676440,1741452652488,-500.0,9.315e-05,2]
[355676441,1741452652498,-500.0,9.315e-05,2]
[355676442,1741452652507,-500.0,9.315e-05,2]
[355676443,1741452652516,-500.0,9.315e-05,2]
[355676444,1741452652526,-500.0,9.315e-05,2]
[355676445,1741452652535,-572.01,9.315e-05,2]
[355676446,1741452652544,-500.0,9.315e-05,2]
[355676447,1741452652554,-500.0,9.315e-05,2]
[355676448,1741452652563,-653.42,9.315e-05,2]
[355676449,1741452652572,-500.0,9.315e-05,2]
[355676450,1741452652581,-500.0,9.315e-05,2]
[355676451,1741452652591,-500.0,9.315e-05,2]
[355676452,1741452652600,-525.98,9.315e-05,2]
[355676453,1741452652610,-579.96,9.315e-05,2]
[355676454,1741452652619,-316.07584028,9.315e-05,2]
[355676455,1741452652628,-525.57,9.315e-05,2]
[355676456,1741452652637,-500.0,9.315e-05,2]
[355676457,1741452652647,-709.73,9.315e-05,2]
[355676458,1741452652656,-500.0,9.315e-05,2]
[355676459,1741452652666,-542.36114194,9.315e-05,2]
[355676460,1741452652675,-500.0,9.315e-05,2]
[355676461,1741452652685,-591.01,9.315e-05,2]
[355676462,1741452652695,-500.0,9.315e-05,2]
[355676463,1741452652704,-743.6,9.315e-05,2]
[355676464,1741452652714,-500.0,9.315e-05,2]
[355676465,1741452652723,-500.0,9.315e-05,2]
[355676466,1741452652733,-500.0,9.315e-05,2]
[355676467,1741452652742,-500.0,9.315e-05,2]
[355676468,1741452652752,-609.03,9.315e-05,2]
[355676469,1741452652762,-612.62,9.315e-05,2]
[355676470,1741452652772,-500.0,9.315e-05,2]
[355676471,1741452652782,-500.0,9.315e-05,2]
[355676472,1741452652793,-500.0,9.315e-05,2]
[355676473,1741452652803,-500.0,9.315e-05,2]
[355676474,1741452652813,-609.32,9.315e-05,2]
[355676475,1741452652824,-851.29,9.315e-05,2]
[355676476,1741452652834,-1077.93,9.315e-05,2]
[355676477,1741452652843,-500.0,9.315e-05,2]
[355676478,1741452652852,-691.53,9.315e-05,2]
[355676479,1741452652862,-708.66,9.315e-05,2]
[355676480,1741452652871,-500.0,9.315e-05,2]
[355676481,1741452652881,-500.0,9.315e-05,2]
[355676482,1741452652890,-500.0,9.315e-05,2]
[355676483,1741452652901,-500.0,9.315e-05,2]
[355676484,1741452652911,-859.23,9.315e-05,2]
[355676485,1741452652921,-500.0,9.315e-05,2]
[355676486,1741452652930,-500.0,9.315e-05,2]
[355676487,1741452652940,-500.0,9.315e-05,2]
[355676488,1741452652949,-500.0,9.315e-05,2]
[355676489,1741452652961,-500.0,9.315e-05,2]
[355676490,1741452652972,-688.72,9.315e-05,2]
[355676491,1741452652982,-844.82,9.315e-05,2]
[355676492,1741452652992,-541.84,9.315e-05,2]
[355676493,1741452653001,-654.03,9.315e-05,2]
[355676494,1741452653010,-500.0,9.315e-05,2]
[355676495,1741452653019,-712.63,9.315e-05,2]
[355676496,1741452653028,-500.0,9.315e-05,2]
[355676497,1741452653038,-500.0,9.315e-05,2]
[355676498,1741452653047,-500.0,9.315e-05,2]
[355676499,1741452653057,-500.0,9.315e-05,2]
[355676500,1741452653068,-500.0,9.315e-05,2]
[355676501,1741452653079,-658.85,9.315e-05,2]
[355676502,1741452653089,-500.0,9.315e-05,2]
[355676503,1741452653098,-794.59,9.315e-05,2]
[355676504,1741452653108,-500.0,9.315e-05,2]
[355676505,1741452653118,-548.22,9.315e-05,2]
[355676506,1741452653127,-500.0,9.315e-05,2]
[355676507,1741452653140,-500.0,9.315e-05,2]
[355676508,1741452653151,-500.0,9.315e-05,2]
[355676509,1741452653161,-612.25,9.315e-05,2]
[355676510,1741452653171,-857.02,9.315e-05,2]
[355676511,1741452653181,-500.0,9.315e-05,2]
[355676512,1741452653192,-675.97,9.315e-05,2]
[355676513,1741452653201,-623.25,9.315e-05,2]
[355676514,1741452653212,-982.52,9.315e-05,2]
[355676515,1741452653221,-500.0,9.315e-05,2]
[355676516,1741452653231,-500.0,9.315e-05,2]
[355676517,1741452653240,-605.91,9.315e-05,2]
[355676518,1741452653249,-500.0,9.315e-05,2]
[355676519,1741452653259,-500.0,9.315e-05,2]
[355676520,1741452653269,-1592.66,9.315e-05,2]
[355676521,1741452653279,-710.79,9.315e-05,2]
[355676522,1741452653289,-500.0,9.315e-05,2]
[355676523,1741452653300,-500.0,9.315e-05,2]
[355676524,1741452653310,-500.0,9.315e-05,2]
[355676525,1741452653320,-557.14,9.315e-05,2]
[355676526,1741452653330,-500.0,9.315e-05,2]
[355676527,1741452653340,-500.0,9.315e-05,2]
[355676528,1741452653350,-1347.38,9.315e-05,2]
[355676529,1741452653360,-1502.89,9.315e-05,2]
[355676530,1741452653371,-1996.33,9.315e-05,2]
[355676531,1741452653381,-500.0,9.315e-05,2]
[355676532,1741452653391,-1144.05,9.315e-05,2]
[355676533,1741452653402,-500.0,9.315e-05,2]
[355676534,1741452653411,-1137.9,9.315e-05,2]
[355676535,1741452653422,-1690.8,9.315e-05,2]
[355676536,1741452653432,-1243.82,9.315e-05,2]
[355676537,1741452653442,-1174.08,9.315e-05,2]
[355676538,1741452653452,-614.72,9.315e-05,2]
[355676539,1741452653463,-500.0,9.315e-05,2]
[355676540,1741452653473,-961.42,9.315e-05,2]
[355676541,1741452653483,-500.0,9.315e-05,2]
[355676542,1741452653492,-551.38,9.315e-05,2]
[355676543,1741452653502,-1143.51,9.315e-05,2]
[355676544,1741452653512,-2931.8,9.315e-05,2]
[355676545,1741452653524,-1961.87,9.315e-05,2]